fUSD/lending_fUSD_20240330
["ID","MTS","AMOUNT","RATE_DAILY","PERIOD"]
[321041898,1711812652562,-529.01263379,0.00041095,4]
[321041899,1711812652571,-500.0,0.00041095,4]
[321041900,1711812652581,-432.78282365,0.00041095,4]
[321041901,1711812652590,-500.0,0.00041095,4]
[321041902,1711812652599,-500.0,0.00041095,4]
[321041903,1711812652608,-500.0,0.00041095,4]
[321041904,1711812652617,-527.34409412,0.00041095,4]
[321041905,1711812652627,-500.0,0.00041095,4]
[321041906,1711812652636,-606.77,0.00041095,4]
[321041907,1711812652646,-500.0,0.00041095,4]
[321041908,1711812652655,-500.0,0.00041095,4]
[321041909,1711812652664,-500.0,0.00041095,4]
[321041910,1711812652673,-520.01474613,0.00041095,4]
[321041911,1711812652682,-586.13,0.00041095,4]
[321041912,1711812652692,-500.0,0.00041095,4]
[321041913,1711812652703,-500.0,0.00041095,4]
[321041914,1711812652712,-500.0,0.00041095,4]
[321041915,1711812652722,-500.0,0.00041095,4]
[321041916,1711812652731,-500.0,0.00041095,4]
[321041917,1711812652740,-500.0,0.00041095,4]
[321041918,1711812652749,-500.0,0.00041095,4]
[321041919,1711812652759,-500.0,0.00041095,4]
[321041920,1711812652768,-500.0,0.00041095,4]
[321041921,1711812652777,-500.0,0.00041095,4]
[321041922,1711812652787,-500.0,0.00041095,4]
[321041923,1711812652797,-500.0,0.00041095,4]
[321041924,1711812652971,-742.22,0.00041095,4]
[321041925,1711812652981,-500.0,0.00041095,4]
[321041926,1711812652991,-539.88903457,0.00041095,4]
[321041927,1711812653005,-1652.88,0.00041095,4]
[321041928,1711812653014,-510.74743864,0.00041095,4]
[321041929,1711812653024,-500.0,0.00041095,4]
[321041930,1711812653034,-500.0,0.00041095,4]
[321041931,1711812653045,-830.11,0.00041095,4]
[321041932,1711812653054,-500.0,0.00041095,4]
[321041933,1711812653063,-500.0,0.00041095,4]
[321041934,1711812653075,-709.46,0.00041095,4]
[321041935,1711812653084,-500.0,0.00041095,4]
[321041936,1711812653093,-500.0,0.00041095,4]
[321041937,1711812653102,-500.0,0.00041095,4]
[321041938,1711812653112,-519.18,0.00041095,4]
[321041939,1711812653121,-513.70651482,0.00041095,4]
[321041940,1711812653131,-500.0,0.00041095,4]
[321041941,1711812653140,-500.0,0.00041095,4]
[321041942,1711812653150,-955.68,0.00041095,4]
[321041943,1711812653159,-548.66154339,0.00041095,4]
[321041944,1711812653168,-21272.24,0.00041095,4]
[321041945,1711812653178,-500.0,0.00041095,4]
[321041946,1711812653187,-500.0,0.00041095,4]
[321041947,1711812653197,-5599.93,0.00041095,4]
[321041948,1711812653207,-500.0,0.00041095,4]
[321041949,1711812653216,-500.0,0.00041095,4]
[321041950,1711812653226,-500.0,0.00041095,4]
[321041951,1711812653235,-546.12,0.00041095,4]
[321041952,1711812653244,-2540.63,0.00041095,4]
[321041953,1711812653253,-500.0,0.00041095,4]
[321041954,1711812653262,-539.3,0.00041095,4]
[321041955,1711812653272,-500.0,0.00041095,4]
[321041956,1711812653281,-500.0,0.00041095,4]
[321041957,1711812653290,-3755.58,0.00041095,4]
[321041958,1711812653299,-500.0,0.00041095,15]
[321041959,1711812653308,-500.0,0.00041095,4]
[321041960,1711812653318,-1604.63,0.00041095,4]
[321041961,1711812653327,-500.0,0.00041095,4]
[321041962,1711812653336,-500.0,0.00041095,4]
[321041963,1711812653346,-500.0,0.00041095,4]
[321041964,1711812653355,-500.0,0.00041095,4]
[321041965,1711812653364,-500.0,0.00041095,4]
[321041966,1711812653373,-1819.64,0.00041095,4]
[321041967,1711812653382,-2479.95,0.00041095,4]
[321041968,1711812653392,-500.0,0.00041095,4]
[321041969,1711812653401,-500.0,0.00041095,4]
[321041970,1711812653411,-500.0,0.00041095,4]
[321041971,1711812653420,-500.0,0.00041095,4]
[321041972,1711812653429,-500.0,0.00041095,4]
[321041973,1711812653438,-500.0,0.00041095,4]
[321041974,1711812653447,-500.0,0.00041095,4]
[321041975,1711812653456,-500.0,0.00041095,4]
[321041976,1711812653465,-500.0,0.00041095,4]
[321041977,1711812653474,-500.0,0.00041095,4]
[321041978,1711812653483,-500.0,0.00041095,4]
[321041979,1711812653492,-500.0,0.00041095,4]
[321041980,1711812653501,-500.0,0.00041095,4]
[321041981,1711812653510,-500.0,0.00041095,4]
[321041982,1711812653519,-500.0,0.00041095,4]
[321041983,1711812653528,-500.0,0.00041095,4]
[321041984,1711812653538,-500.0,0.00041095,4]
[321041985,1711812653547,-500.0,0.00041095,4]
[321041986,1711812653556,-500.0,0.00041095,4]
[321041987,1711812653565,-500.0,0.00041095,4]
[321041988,1711812653574,-712.19,0.00041095,4]
[321041989,1711812653584,-1457.53,0.00041095,4]
[321041990,1711812653594,-521.49654277,0.00041095,4]
[321041991,1711812653603,-2787.32,0.00041095,4]
[321041992,1711812653612,-1943.73,0.00041095,4]
[321041993,1711812653621,-626.85,0.00041095,4]
[321041994,1711812653630,-900.41,0.00041095,4]
[321041995,1711812653640,-729.6,0.00041095,4]
[321041996,1711812653650,-588.12,0.00041095,4]
[321041997,1711812653659,-500.0,0.00041095,4]
[321041998,1711812653669,-500.0,0.00041095,4]
[321041999,1711812653678,-500.0,0.00041095,4]
[321042000,1711812653687,-500.0,0.00041095,4]
[321042001,1711812653697,-500.0,0.00041095,4]
[321042002,1711812653706,-1068.76,0.00041095,4]
[321042003,1711812653720,-500.0,0.00041095,4]
[321042004,1711812653730,-500.0,0.00041095,4]
[321042005,1711812653740,-500.0,0.00041095,4]
[321042006,1711812653749,-4474.23,0.00041095,4]
[321042007,1711812653759,-500.0,0.00041095,4]
[321042008,1711812653769,-840.02,0.00041095,4]
[321042009,1711812653779,-500.0,0.00041095,4]
[321042010,1711812653788,-3469.39,0.00041095,4]
[321042011,1711812653798,-1071.04,0.00041095,4]
[321042012,1711812653807,-986.31,0.00041095,4]
[321042013,1711812653817,-1000.0,0.00041095,4]
[321042014,1711812653826,-500.0,0.00041095,4]
[321042015,1711812653836,-300.0,0.00041095,2]
[321042016,1711812653846,-500.0,0.00041095,4]
[321042017,1711812653856,-500.0,0.00041095,4]
[321042018,1711812653866,-800.6,0.00041095,4]
[321042019,1711812653875,-500.0,0.00041095,4]
[321042020,1711812653885,-373.53031739,0.00041095,4]
[321042021,1711812653894,-716.46,0.00041095,4]
[321042022,1711812653905,-500.0,0.00041095,4]
[321042023,1711812653915,-514.89662259,0.00041095,4]
[321042024,1711812653925,-500.0,0.00041095,4]
[321042025,1711812653934,-500.0,0.00041095,4]
[321042026,1711812653944,-2723.05,0.00041095,4]
[321042027,1711812653954,-1219.28,0.00041095,4]
[321042028,1711812653963,-500.0,0.00041095,4]
[321042029,1711812653973,-1464.75,0.00041095,4]
[321042030,1711812653983,-618.79,0.00041095,4]
[321042031,1711812653997,-500.0,0.00041095,4]
[321042032,1711812654006,-973.95,0.00041095,4]
[321042033,1711812654016,-562.05,0.00041095,4]
[321042034,1711812654025,-500.0,0.00041095,4]
[321042035,1711812654035,-577.13,0.00041095,4]
[321042036,1711812654045,-500.0,0.00041095,4]
[321042037,1711812654054,-500.0,0.00041095,4]
[321042038,1711812654063,-650.98,0.00041095,4]
[321042039,1711812654072,-500.0,0.00041095,4]
[321042040,1711812654082,-771.42,0.00041095,4]
[321042041,1711812654091,-500.0,0.00041095,4]
[321042042,1711812654101,-500.0,0.00041095,4]
[321042043,1711812654110,-937.26,0.00041095,4]
[321042044,1711812654119,-500.0,0.00041095,4]
[321042045,1711812654128,-2954.52,0.00041095,4]
[321042046,1711812654137,-500.0,0.00041095,4]
[321042047,1711812654146,-500.0,0.00041095,4]
[321042048,1711812654156,-1420.95,0.00041095,4]
[321042049,1711812654165,-500.0,0.00041095,4]
[321042050,1711812654174,-2837.09,0.00041095,4]
[321042051,1711812654183,-500.0,0.00041095,4]
[321042052,1711812654192,-1126.68,0.00041095,4]
[321042053,1711812654202,-535.75311044,0.00041095,4]
[321042054,1711812654211,-637.54,0.00041095,4]
[321042055,1711812654219,-500.0,0.00041095,4]
[321042056,1711812654229,-500.0,0.00041095,4]
[321042057,1711812654238,-1609.51,0.00041095,4]
[321042058,1711812654247,-1117.66,0.00041095,4]
[321042059,1711812654256,-500.0,0.00041095,4]
[321042060,1711812654266,-1399.61,0.00041095,4]
[321042061,1711812654275,-500.0,0.00041095,4]
[321042062,1711812654285,-500.0,0.00041095,4]
[321042063,1711812654295,-500.0,0.00041095,4]
[321042064,1711812654306,-4611.48,0.00041095,4]
[321042065,1711812654317,-2274.4,0.00041095,4]
[321042066,1711812654328,-12267.62,0.00041095,4]
[321042067,1711812654338,-500.0,0.00041095,4]
[321042068,1711812654348,-500.0,0.00041095,4]
[321042069,1711812654360,-3165.54,0.00041095,4]
[321042070,1711812654371,-500.0,0.00041095,4]
[321042071,1711812654381,-829.61,0.00041095,4]
[321042072,1711812654391,-1764.41,0.00041095,4]
[321042073,1711812654402,-500.0,0.00041095,4]
[321042074,1711812654411,-2437.52,0.00041095,4]
[321042075,1711812654420,-919.87,0.00041095,4]
[321042076,1711812654430,-500.0,0.00041095,4]
[321042077,1711812654440,-500.0,0.00041095,4]
[321042078,1711812654451,-500.0,0.00041095,4]
[321042079,1711812654461,-500.0,0.00041095,4]
[321042080,1711812654470,-635.59,0.00041095,4]
[321042081,1711812654479,-2081.96,0.00041095,4]
[321042082,1711812654489,-815.55,0.00041095,4]
[321042083,1711812654498,-375.87518958,0.00041095,4]
[321042084,1711812654508,-821.07,0.00041095,4]
[321042085,1711812654517,-500.0,0.00041095,4]
[321042086,1711812654527,-821.07,0.00041095,4]
[321042087,1711812654536,-821.07,0.00041095,4]
[321042088,1711812654546,-821.07,0.00041095,4]
[321042089,1711812654555,-500.0,0.00041095,4]
[321042090,1711812654565,-500.0,0.00041095,4]
[321042091,1711812654574,-821.07,0.00041095,4]
[321042092,1711812654584,-821.07,0.00041095,4]
[321042093,1711812654593,-4152.51,0.00041095,4]
[321042094,1711812654602,-500.0,0.00041095,4]
[321042095,1711812654612,-821.07,0.00041095,4]
[321042096,1711812654621,-1656.96,0.00041095,4]
[321042097,1711812654630,-821.07,0.00041095,4]
[321042098,1711812654640,-3482.21,0.00041095,4]
[321042099,1711812654649,-821.07,0.00041095,4]
[321042100,1711812654658,-500.0,0.00041095,4]
[321042101,1711812654667,-821.07,0.00041095,4]
[321042102,1711812654677,-500.0,0.00041095,4]
[321042103,1711812654686,-821.07,0.00041095,4]
[321042104,1711812654696,-821.07,0.00041095,4]
[321042105,1711812654707,-2719.65,0.00041095,4]
[321042106,1711812654717,-821.07,0.00041095,4]
[321042107,1711812654728,-821.07,0.00041095,4]
[321042108,1711812654738,-500.0,0.00041095,4]
[321042109,1711812654748,-500.0,0.00041095,4]
[321042110,1711812654757,-1654.22,0.00041095,4]
[321042111,1711812654767,-500.0,0.00041095,4]
[321042112,1711812654777,-779.8,0.00041095,4]
[321042113,1711812654787,-500.0,0.00041095,4]
[321042114,1711812654797,-2633.02,0.00041095,4]
[321042115,1711812654807,-516.08,0.00041095,4]
[321042116,1711812654816,-500.0,0.00041095,4]
[321042117,1711812654825,-1606.0,0.00041095,4]
[321042118,1711812654836,-500.0,0.00041095,4]
[321042119,1711812654846,-500.0,0.00041095,4]
[321042120,1711812654855,-5805.83,0.00041095,4]
[321042121,1711812654865,-500.0,0.00041095,4]
[321042122,1711812654874,-2016.69,0.00041095,4]
[321042123,1711812654883,-500.0,0.00041095,4]
[321042124,1711812654893,-500.0,0.00041095,4]
[321042125,1711812654903,-500.0,0.00041095,4]
[321042126,1711812654912,-506.78,0.00041095,4]
[321042127,1711812654921,-270.71477142,0.00041095,4]
[321042128,1711812654930,-500.0,0.00041095,4]
[321042129,1711812654940,-3246.46,0.00041095,4]
[321042130,1711812654950,-500.0,0.00041095,4]
[321042131,1711812654959,-500.0,0.00041095,4]
[321042132,1711812654969,-3591.43,0.00041095,4]
[321042133,1711812654978,-500.0,0.00041095,4]
[321042134,1711812654988,-2508.34,0.00041095,4]
[321042135,1711812655000,-500.0,0.00041095,4]
[321042136,1711812655009,-500.0,0.00041095,4]
[321042137,1711812655018,-500.0,0.00041095,4]
[321042138,1711812655027,-500.0,0.00041095,4]
[321042139,1711812655037,-500.0,0.00041095,4]
[321042140,1711812655047,-500.0,0.00041095,4]
[321042141,1711812655056,-500.0,0.00041095,4]
[321042142,1711812655065,-500.0,0.00041095,4]
[321042143,1711812655075,-500.0,0.00041095,4]
[321042144,1711812655085,-500.0,0.00041095,4]
[321042145,1711812655094,-528.50967639,0.00041095,4]
[321042146,1711812655104,-1210.08,0.00041095,4]
[321042147,1711812655113,-2464.71,0.00041095,4]
[321042148,1711812655122,-1306.27,0.00041095,4]
[321042149,1711812655131,-1271.0,0.00041095,4]
[321042150,1711812655141,-12940.69,0.00041095,4]
[321042151,1711812655150,-500.0,0.00041095,4]
[321042152,1711812655159,-500.0,0.00041095,4]
[321042153,1711812655168,-500.0,0.00041095,4]
[321042154,1711812655178,-905.68,0.00041095,4]
[321042155,1711812655187,-500.0,0.00041095,4]
[321042156,1711812655196,-500.0,0.00041095,4]
[321042157,1711812655207,-500.0,0.00041095,4]
[321042158,1711812655216,-4313.67,0.00041095,4]
[321042159,1711812655226,-3747.47,0.00041095,4]
[321042160,1711812655235,-500.0,0.00041095,2]
[321042161,1711812655245,-770.36,0.00041095,4]
[321042162,1711812655254,-8309.15,0.00041095,4]
[321042163,1711812655263,-500.0,0.00041095,4]
[321042164,1711812655273,-500.0,0.00041095,4]
[321042165,1711812655282,-500.0,0.00041095,4]
[321042166,1711812655292,-500.0,0.00041095,4]
[321042167,1711812655301,-500.0,0.00041095,4]
[321042168,1711812655311,-500.0,0.00041095,4]
[321042169,1711812655320,-500.0,0.00041095,4]
[321042170,1711812655329,-185.59092494,0.00041095,4]
[321042171,1711812655338,-500.0,0.00041095,4]
[321042172,1711812655348,-1598.26,0.00041095,4]
[321042173,1711812655357,-500.0,0.00041095,4]
[321042174,1711812655367,-515.57,0.00041095,4]
[321042175,1711812655376,-798.53,0.00041095,4]
[321042176,1711812655386,-500.0,0.00041095,4]
[321042177,1711812655396,-500.0,0.00041095,4]
[321042178,1711812655405,-939.59,0.00041095,4]
[321042179,1711812655415,-500.0,0.00041095,4]
[321042180,1711812655424,-500.0,0.00041095,4]
[321042181,1711812655433,-500.0,0.00041095,4]
[321042182,1711812655443,-500.0,0.00041095,4]
[321042183,1711812655454,-1937.73,0.00041095,4]
[321042184,1711812655463,-500.0,0.00041095,4]
[321042185,1711812655472,-588.88,0.00041095,4]
[321042186,1711812655481,-500.0,0.00041095,4]
[321042187,1711812655491,-500.0,0.00041095,4]
[321042188,1711812655500,-342.30969584,0.00041095,4]
[321042189,1711812655510,-500.0,0.00041095,4]
[321042190,1711812655519,-500.0,0.00041095,4]
[321042191,1711812655529,-500.0,0.00041095,4]
[321042192,1711812655538,-500.0,0.00041095,4]
[321042193,1711812655547,-577.01,0.00041095,4]
[321042194,1711812655556,-500.0,0.00041095,4]
[321042195,1711812655565,-500.0,0.00041095,4]
[321042196,1711812655574,-500.0,0.00041095,4]
[321042197,1711812655584,-500.0,0.00041095,4]
[321042198,1711812655594,-500.0,0.00041095,4]
[321042199,1711812655602,-1223.38,0.00041095,4]
[321042200,1711812655611,-500.0,0.00041095,4]
[321042201,1711812655620,-500.0,0.00041095,4]
[321042202,1711812655629,-500.0,0.00041095,4]
[321042203,1711812655639,-500.0,0.00041095,4]
[321042204,1711812655648,-3825.77,0.00041095,4]
[321042205,1711812655658,-500.0,0.00041095,4]
[321042206,1711812655668,-500.0,0.00041095,4]
[321042207,1711812655677,-517.36710514,0.00041095,4]
[321042208,1711812655687,-500.0,0.00041095,4]
[321042209,1711812655696,-523.7235122,0.00041095,4]
[321042210,1711812655707,-2071.49,0.00041095,4]
[321042211,1711812655717,-500.0,0.00041095,4]
[321042212,1711812655726,-500.0,0.00041095,4]
[321042213,1711812655735,-500.0,0.00041095,4]
[321042214,1711812655745,-512.36119267,0.00041095,4]
[321042215,1711812655755,-598.18,0.00041095,4]
[321042216,1711812655765,-534.95912381,0.00041095,4]
[321042217,1711812655774,-500.0,0.00041095,4]
[321042218,1711812655783,-500.0,0.00041095,4]
[321042219,1711812655793,-500.0,0.00041095,4]
[321042220,1711812655802,-1674.58,0.00041095,4]
[321042221,1711812655811,-4126.52,0.00041095,4]
[321042222,1711812655821,-3684.96,0.00041095,4]
[321042223,1711812655830,-392.49444216,0.00041095,4]
[321042224,1711812655839,-500.0,0.00041095,4]
[321042225,1711812655849,-511.52,0.00041095,4]
[321042226,1711812656039,-524.48351115,0.00041095,4]
[321042227,1711812656050,-500.0,0.00041095,4]
[321042228,1711812656060,-409.95661524,0.00041095,4]
[321042229,1711812656070,-500.0,0.00041095,4]
[321042230,1711812656079,-500.0,0.00041095,4]
[321042231,1711812656089,-500.0,0.00041095,4]
[321042232,1711812656098,-792.5,0.00041095,4]
[321042233,1711812656108,-500.0,0.00041095,4]
[321042234,1711812656117,-507.65750782,0.00041095,4]
[321042235,1711812656126,-718.65,0.00041095,4]
[321042236,1711812656136,-640.88,0.00041095,4]
[321042237,1711812656146,-500.0,0.00041095,4]
[321042238,1711812656155,-503.96547865,0.00041095,4]
[321042239,1711812656165,-690.5,0.00041095,4]
[321042240,1711812656176,-500.0,0.00041095,4]
[321042241,1711812656185,-583.04908598,0.00041095,4]
[321042242,1711812656195,-500.5911669,0.00041095,2]
[321042243,1711812656205,-1254.77,0.00041095,4]
[321042244,1711812656214,-500.0,0.00041095,4]
[321042245,1711812656223,-500.0,0.00041095,4]
[321042246,1711812656232,-500.0,0.00041095,2]
[321042247,1711812656242,-500.0,0.00041095,4]
[321042248,1711812656251,-1571.8,0.00041095,4]
[321042249,1711812656261,-533.37,0.00041095,4]
[321042250,1711812656270,-500.0,0.00041095,4]
[321042251,1711812656281,-500.0,0.00041095,4]
[321042252,1711812656291,-500.0,0.00041095,4]
[321042253,1711812656300,-500.0,0.00041095,4]
[321042254,1711812656310,-548.87646135,0.00041095,2]
[321042255,1711812656320,-445.72975385,0.00041095,4]
[321042256,1711812656329,-808.81,0.00041095,4]
[321042257,1711812656338,-500.0,0.00041095,4]
[321042258,1711812656347,-500.0,0.00041095,4]
[321042259,1711812656357,-500.0,0.00041095,4]
[321042260,1711812656366,-396.95025573,0.00041095,2]
[321042261,1711812656376,-500.0,0.00041095,4]
[321042262,1711812656385,-500.0,0.00041095,4]
[321042263,1711812656394,-929.45,0.00041095,4]
[321042264,1711812656404,-500.0,0.00041095,4]
[321042265,1711812656413,-500.0,0.00041095,4]
[321042266,1711812656422,-500.0,0.00041095,4]
[321042267,1711812656431,-500.0,0.00041095,4]
[321042268,1711812656440,-500.0,0.00041095,4]
[321042269,1711812656449,-508.56942639,0.00041095,4]
[321042270,1711812656459,-500.0,0.00041095,4]
[321042271,1711812656468,-500.0,0.00041095,4]
[321042272,1711812656478,-6268.62,0.00041095,4]
[321042273,1711812656486,-500.0,0.00041095,4]
[321042274,1711812656495,-584.04849864,0.00041095,4]
[321042275,1711812656505,-500.0,0.00041095,4]
[321042276,1711812656514,-494.82834041,0.00041095,4]
[321042277,1711812656523,-500.0,0.00041095,4]
[321042278,1711812656533,-500.0,0.00041095,4]
[321042279,1711812656542,-500.0,0.00041095,4]
[321042280,1711812656551,-500.0,0.00041095,4]
[321042281,1711812656561,-500.0,0.00041095,4]
[321042282,1711812656570,-3983.25,0.00041095,4]
[321042283,1711812656579,-500.0,0.00041095,4]
[321042284,1711812656589,-1000.0,0.00041096,2]
[321042285,1711812656598,-189.0,0.00041096,2]
[321042286,1711812656607,-180.0,0.00041096,2]
[321042287,1711812656617,-1500.0,0.00041096,45]
[321042288,1711812656626,-200.0,0.00041149,15]
[321042289,1711812656636,-800.0,0.00041149,20]
[321042290,1711812656645,-500.0,0.00041149,20]
[321042291,1711812656654,-200.0,0.00041149,20]
[321042292,1711812656664,-180.0,0.00041287,2]
[321042293,1711812656674,-150.0,0.00041295,2]
[321042294,1711812656683,-199.02997118,0.00041367,4]
[321042295,1711812656693,-309.23678242,0.00041367,4]
[321042296,1711812656703,-194.70259534,0.00041367,4]
[321042297,1711812656713,-258.73386865,0.00041368,4]
[321042298,1711812656722,-155.66684084,0.00041368,4]
[321042299,1711812656732,-221.31238026,0.00041368,4]
[321042300,1711812656741,-1481.23933006,0.00041368,4]
[321042301,1711812656751,-561.32987114,0.00041368,4]
[321042302,1711812656760,-821.07,0.00041368,4]
[321042303,1711812656769,-821.07,0.00041368,4]
[321042304,1711812656779,-221.25851056,0.00041369,4]
[321042305,1711812656789,-500.0,0.00041369,4]
[321042306,1711812656799,-317.58353588,0.00041369,4]
[321042307,1711812656809,-500.0,0.00041369,4]
[321042308,1711812656819,-500.0,0.00041369,4]
[321042309,1711812656829,-500.0,0.00041369,4]
[321042310,1711812656839,-500.0,0.00041369,4]
[321042311,1711812656849,-500.0,0.00041369,4]
[321042312,1711812656858,-538.64125567,0.00041369,4]
[321042313,1711812656868,-500.0,0.00041369,4]
[321042314,1711812656877,-500.0,0.00041369,4]
[321042315,1711812656886,-500.0,0.00041369,4]
[321042316,1711812656896,-500.0,0.00041369,4]
[321042317,1711812656905,-500.0,0.00041369,4]
[321042318,1711812656914,-500.0,0.00041369,4]
[321042319,1711812656924,-537.89584665,0.00041369,4]
[321042320,1711812656934,-500.0,0.00041369,4]
[321042321,1711812656943,-500.0,0.00041369,4]
[321042322,1711812656953,-509.70964772,0.00041369,4]
[321042323,1711812656962,-500.0,0.00041369,4]
[321042324,1711812656972,-500.0,0.00041369,4]
[321042325,1711812656981,-500.0,0.00041369,4]
[321042326,1711812656991,-500.0,0.00041369,4]
[321042327,1711812657004,-514.4244459,0.00041369,4]
[321042328,1711812657014,-500.0,0.00041369,4]
[321042329,1711812657023,-500.0,0.00041369,4]
[321042330,1711812657033,-531.0692829,0.00041369,4]
[321042331,1711812657044,-500.0,0.00041369,4]
[321042332,1711812657054,-500.0,0.00041369,4]
[321042333,1711812657063,-500.0,0.00041369,4]
[321042334,1711812657076,-500.0,0.00041369,4]
[321042335,1711812657087,-500.0,0.00041369,4]
[321042336,1711812657097,-628.90938,0.00041369,4]
[321042337,1711812657106,-573.12956725,0.00041369,4]
[321042338,1711812657115,-500.0,0.00041369,4]
[321042339,1711812657125,-500.0,0.00041369,4]
[321042340,1711812657134,-500.0,0.00041369,4]
[321042341,1711812657143,-500.0,0.00041369,4]
[321042342,1711812657152,-500.0,0.00041369,4]
[321042343,1711812657163,-520.51612845,0.00041369,4]
[321042344,1711812657172,-500.0,0.00041369,4]
[321042345,1711812657182,-500.0,0.00041369,4]
[321042346,1711812657191,-500.0,0.00041369,4]
[321042347,1711812657201,-500.0,0.00041369,4]
[321042348,1711812657210,-453.40061426,0.00041369,4]
[321042349,1711812657219,-403.80646985,0.00041369,4]
[321042350,1711812657229,-500.0,0.00041369,4]
[321042351,1711812657239,-500.0,0.00041369,4]
[321042352,1711812657248,-500.0,0.00041369,4]
[321042353,1711812657258,-500.0,0.00041369,4]
[321042354,1711812657269,-500.0,0.00041369,4]
[321042355,1711812657278,-500.0,0.00041369,4]
[321042356,1711812657288,-387.66209887,0.00041369,4]
[321042357,1711812657299,-500.0,0.00041369,4]
[321042358,1711812657308,-500.0,0.00041369,4]
[321042359,1711812657318,-500.0,0.00041369,4]
[321042360,1711812657327,-500.0,0.00041369,4]
[321042361,1711812657337,-500.0,0.00041369,4]
[321042362,1711812657346,-500.0,0.00041369,4]
[321042363,1711812657356,-500.0,0.00041369,4]
[321042364,1711812657366,-520.16389712,0.00041369,4]
[321042365,1711812657376,-500.0,0.00041369,4]
[321042366,1711812657386,-500.0,0.00041369,4]
[321042367,1711812657395,-500.0,0.00041369,4]
[321042368,1711812657405,-500.0,0.00041369,4]
[321042369,1711812657415,-500.0,0.00041369,4]
[321042370,1711812657425,-500.0,0.00041369,4]
[321042371,1711812657435,-500.0,0.00041369,4]
[321042372,1711812657445,-498.2994,0.00041369,4]
[321042373,1711812657454,-500.0,0.00041369,4]
[321042374,1711812657464,-500.0,0.00041369,4]
[321042375,1711812657474,-500.0,0.00041369,4]
[321042376,1711812657484,-500.0,0.00041369,4]
[321042377,1711812657493,-598.10074773,0.00041369,4]
[321042378,1711812657503,-500.0,0.00041369,4]
[321042379,1711812657513,-500.0,0.00041369,4]
[321042380,1711812657522,-500.0,0.00041369,4]
[321042381,1711812657532,-500.0,0.00041369,4]
[321042382,1711812657542,-500.0,0.00041369,4]
[321042383,1711812657551,-500.0,0.00041369,4]
[321042384,1711812657561,-500.0,0.00041369,4]
[321042385,1711812657570,-500.0,0.00041369,4]
[321042386,1711812657579,-500.0,0.00041369,4]
[321042387,1711812657589,-516.5452889,0.00041369,4]
[321042388,1711812657599,-500.0,0.00041369,4]
[321042389,1711812657608,-500.0,0.00041369,4]
[321042390,1711812657618,-500.0,0.00041369,4]
[321042391,1711812657627,-500.0,0.00041369,4]
[321042392,1711812657636,-500.0,0.00041369,4]
[321042393,1711812657645,-500.0,0.00041369,4]
[321042394,1711812657655,-500.0,0.00041369,4]
[321042395,1711812657665,-500.0,0.00041369,4]
[321042396,1711812657675,-500.0,0.00041369,4]
[321042397,1711812657684,-500.0,0.00041369,4]